fUSD/lending_fUSD_20250812
["ID","MTS","AMOUNT","RATE_DAILY","PERIOD"]
[378814887,1755034260379,-1857.85,0.00049315,120]
[378814888,1755034260388,-403.79,0.00049315,120]
[378814889,1755034260397,-400.0,0.00049315,120]
[378814890,1755034260406,-400.0,0.00049315,120]
[378814891,1755034260415,-400.0,0.00049315,120]
[378814892,1755034260425,-759.74,0.00049315,120]
[378814893,1755034260434,-630.38,0.00049315,120]
[378814894,1755034260443,-310.7511378,0.00049315,120]
[378814895,1755034260453,-400.0,0.00049315,120]
[378814896,1755034260463,-400.0,0.00049315,120]
[378814897,1755034260472,-730.18,0.00049315,120]
[378814898,1755034260482,-3092.44,0.00049315,120]
[378814899,1755034260493,-3473.76,0.00049315,120]
[378814900,1755034260502,-400.0,0.00049315,120]
[378814901,1755034260512,-400.0,0.00049315,120]
[378814902,1755034260521,-400.0,0.00049315,120]
[378814903,1755034260530,-400.0,0.00049315,120]
[378814904,1755034260539,-400.0,0.00049315,120]
[378814905,1755034260548,-3227.45,0.00049315,120]
[378814906,1755034260557,-437.57,0.00049315,120]
[378814907,1755034260567,-151.0,0.00049315,30]
[378814908,1755034260576,-400.0,0.00049315,120]
[378814909,1755034260585,-444.54,0.00049315,120]
[378814910,1755034260595,-1017.27,0.00049315,120]
[378814911,1755034260604,-829.51,0.00049315,120]
[378814912,1755034260613,-400.0,0.00049315,120]
[378814913,1755034260623,-400.0,0.00049315,120]
[378814914,1755034260632,-400.0,0.00049315,120]
[378814915,1755034260642,-400.0,0.00049315,120]
[378814916,1755034260656,-400.0,0.00049315,120]
[378814917,1755034260666,-1537.15,0.00049315,120]
[378814918,1755034260676,-207.48329574,0.00049315,120]
[378814919,1755034260685,-400.0,0.00049315,120]
[378814920,1755034260697,-400.0,0.00049315,120]
[378814921,1755034260707,-777.1,0.00049315,120]
[378814922,1755034260719,-400.0,0.00049315,120]
[378814923,1755034260731,-300.0,0.00049315,2]
[378814924,1755034260740,-525.7736692,0.00049315,120]
[378814925,1755034260750,-537.14,0.00049315,120]
[378814926,1755034260759,-400.0,0.00049315,120]
[378814927,1755034260769,-400.0,0.00049315,120]
[378814928,1755034260778,-400.0,0.00049315,120]
[378814929,1755034260788,-400.0,0.00049315,3]
[378814930,1755034260799,-1398.14,0.00049315,120]
[378814931,1755034260809,-1712.35,0.00049315,120]
[378814932,1755034260819,-1155.31,0.00049315,120]
[378814933,1755034260828,-400.0,0.00049315,120]
[378814934,1755034260837,-537.28,0.00049315,118]
[378814935,1755034260847,-400.0,0.00049315,120]
[378814936,1755034260856,-400.0,0.00049315,2]
[378814937,1755034260866,-400.0,0.00049315,120]
[378814938,1755034260876,-500.0,0.00049315,120]
[378814939,1755034260885,-500.0,0.00049315,120]
[378814940,1755034260894,-500.0,0.00049315,120]
[378814941,1755034260903,-500.0,0.00049315,120]
[378814942,1755034260912,-500.0,0.00049315,120]
[378814943,1755034260922,-500.0,0.00049315,120]
[378814944,1755034260931,-500.0,0.00049315,120]
[378814945,1755034260941,-500.0,0.00049315,120]
[378814946,1755034260950,-500.0,0.00049315,120]
[378814947,1755034260959,-1046.2,0.00049315,120]
[378814948,1755034260968,-874.49,0.00049315,120]
[378814949,1755034260978,-500.0,0.00049315,120]
[378814950,1755034260987,-482.60663807,0.00049315,120]
[378814951,1755034260997,-151.0,0.00049315,30]
[378814952,1755034261007,-400.0,0.00049315,120]
[378814953,1755034261017,-500.0,0.00049315,120]
[378814954,1755034261027,-400.0,0.00049315,120]
[378814955,1755034261036,-500.0,0.00049315,120]
[378814956,1755034261046,-500.0,0.00049315,120]
[378814957,1755034261055,-400.0,0.00049315,120]
[378814958,1755034261064,-400.0,0.00049315,120]
[378814959,1755034261073,-400.0,0.00049315,120]
[378814960,1755034261083,-400.0,0.00049315,120]
[378814961,1755034261092,-1592.29,0.00049315,120]
[378814962,1755034261101,-151.0,0.00049315,30]
[378814963,1755034261110,-721.88,0.00049315,120]
[378814964,1755034261119,-2193.41,0.00049315,120]
[378814965,1755034261128,-400.0,0.00049315,120]
[378814966,1755034261136,-400.0,0.00049315,120]
[378814967,1755034261145,-400.0,0.00049315,120]
[378814968,1755034261155,-400.0,0.00049315,120]
[378814969,1755034261163,-400.0,0.00049315,120]
[378814970,1755034261173,-400.0,0.00049315,120]
[378814971,1755034261182,-400.0,0.00049315,120]
[378814972,1755034261191,-1908.34,0.00049315,120]
[378814973,1755034261200,-416.06,0.00049315,60]
[378814974,1755034261209,-400.0,0.00049315,120]
[378814975,1755034261218,-1329.56,0.00049315,120]
[378814976,1755034261227,-400.0,0.00049315,120]
[378814977,1755034261236,-400.0,0.00049315,120]
[378814978,1755034261245,-439.32,0.00049315,120]
[378814979,1755034261254,-1488.38,0.00049315,120]
[378814980,1755034261263,-400.0,0.00049315,120]
[378814981,1755034261273,-1617.98,0.00049315,120]
[378814982,1755034261282,-666.0,0.00049315,2]
[378814983,1755034261291,-400.0,0.00049315,120]
[378814984,1755034261300,-1853.14,0.00049315,120]
[378814985,1755034261310,-1249.71,0.00049315,120]
[378814986,1755034261319,-400.0,0.00049315,120]
[378814987,1755034261328,-400.0,0.00049315,120]
[378814988,1755034261336,-2239.04,0.00049315,120]
[378814989,1755034261346,-1068.14,0.00049315,120]
[378814990,1755034261355,-400.0,0.00049315,120]
[378814991,1755034261364,-4561.82,0.00049315,120]
[378814992,1755034261373,-1007.68,0.00049315,120]
[378814993,1755034261382,-1443.71,0.00049315,120]
[378814994,1755034261391,-400.0,0.00049315,120]
[378814995,1755034261400,-400.0,0.00049315,120]
[378814996,1755034261409,-447.63,0.00049315,120]
[378814997,1755034261418,-520.0,0.00049315,120]
[378814998,1755034261428,-1187.19,0.00049315,120]
[378814999,1755034261437,-400.0,0.00049315,120]
[378815000,1755034261447,-390.4980891,0.00049315,120]
[378815001,1755034261456,-151.0,0.00049315,30]
[378815002,1755034261464,-400.0,0.00049315,120]
[378815003,1755034261474,-2105.18,0.00049315,120]
[378815004,1755034261484,-494.76,0.00049315,120]
[378815005,1755034261493,-680.29,0.00049315,120]
[378815006,1755034261502,-1077.65,0.00049315,120]
[378815007,1755034261511,-2742.56,0.00049315,14]
[378815008,1755034261520,-400.0,0.00049315,120]
[378815009,1755034261529,-400.0,0.00049315,120]
[378815010,1755034261538,-500.0,0.00049315,120]
[378815011,1755034261547,-1318.9,0.00049315,120]
[378815012,1755034261556,-400.0,0.00049315,120]
[378815013,1755034261566,-400.0,0.00049315,120]
[378815014,1755034261575,-663.14,0.00049315,120]
[378815015,1755034261584,-400.0,0.00049315,120]
[378815016,1755034261593,-400.0,0.00049315,120]
[378815017,1755034261602,-1108.61,0.00049315,120]
[378815018,1755034261610,-335.55028906,0.00049315,120]
[378815019,1755034261619,-690.26,0.00049315,120]
[378815020,1755034261628,-400.0,0.00049315,120]
[378815021,1755034261637,-460.0,0.00049315,120]
[378815022,1755034261646,-400.0,0.00049315,120]
[378815023,1755034261659,-400.0,0.00049315,120]
[378815024,1755034261667,-400.0,0.00049315,120]
[378815025,1755034261676,-1262.79,0.00049315,120]
[378815026,1755034261685,-400.0,0.00049315,120]
[378815027,1755034261905,-1044.71,0.00049315,120]
[378815028,1755034261914,-400.0,0.00049315,120]
[378815029,1755034261924,-400.0,0.00049315,120]
[378815030,1755034261933,-400.0,0.00049315,120]
[378815031,1755034261943,-835.13,0.00049315,120]
[378815032,1755034261952,-400.0,0.00049315,120]
[378815033,1755034261961,-595.06,0.00049315,120]
[378815034,1755034261971,-400.0,0.00049315,120]
[378815035,1755034261980,-349.153289,0.00049315,30]
[378815036,1755034261990,-1649.71,0.00049315,120]
[378815037,1755034262000,-400.0,0.00049315,120]
[378815038,1755034262009,-443.03,0.00049315,120]
[378815039,1755034262018,-400.0,0.00049315,120]
[378815040,1755034262028,-400.0,0.00049315,120]
[378815041,1755034262038,-400.0,0.00049315,120]
[378815042,1755034262047,-400.0,0.00049315,120]
[378815043,1755034262057,-400.0,0.00049315,120]
[378815044,1755034262066,-349.153289,0.00049315,30]
[378815045,1755034262075,-151.0,0.00049315,30]
[378815046,1755034262085,-1319.33,0.00049315,120]
[378815047,1755034262094,-1523.31,0.00049315,120]
[378815048,1755034262103,-402.85740176,0.00049315,120]
[378815049,1755034262112,-1219.58,0.00049315,120]
[378815050,1755034262123,-672.06,0.00049315,120]
[378815051,1755034262132,-400.0,0.00049315,120]
[378815052,1755034262141,-400.0,0.00049315,120]
[378815053,1755034262150,-1128.86,0.00049315,120]
[378815054,1755034262160,-301.02896685,0.00049315,120]
[378815055,1755034262169,-400.0,0.00049315,120]
[378815056,1755034262179,-2959.86,0.00049315,120]
[378815057,1755034262188,-2890.15483166,0.00049315,120]
[378815058,1755034262307,-69.70516834,0.00049315,120]
[378815059,1755034262318,-818.29483166,0.00049315,120]
[378815060,1755034262330,-621.38629145,0.00049315,120]
[378815061,1755034262346,-522.98,0.00049315,120]
[378815062,1755034262376,-21466.0,0.00037358,2]
[378815063,1755034262385,-1888.0,0.00044093,3]
[378815064,1755034262394,-997.19887689,0.00049315,120]
[378815065,1755034262403,-400.0,0.00049315,120]
[378815066,1755034262412,-513.09669443,0.00049315,120]
[378815067,1755034262422,-2959.86,0.00049315,120]
[378815068,1755034262431,-826.43,0.00049315,120]
[378815069,1755034262440,-2959.86,0.00049315,120]
[378815070,1755034262450,-2959.86,0.00049315,120]
[378815071,1755034262460,-400.0,0.00049315,120]
[378815072,1755034262470,-2959.86,0.00049315,120]
[378815073,1755034262479,-2959.86,0.00049315,120]
[378815074,1755034262489,-365.77587479,0.00049315,120]
[378815075,1755034262498,-2959.86,0.00049315,120]
[378815076,1755034262508,-400.0,0.00049315,120]
[378815077,1755034262518,-400.0,0.00049315,120]
[378815078,1755034262529,-2959.86,0.00049315,120]
[378815079,1755034262539,-2959.86,0.00049315,120]
[378815080,1755034262549,-2959.86,0.00049315,120]
[378815081,1755034262558,-400.0,0.00049315,120]
[378815082,1755034262567,-400.0,0.00049315,120]
[378815083,1755034262577,-1301.08,0.00049315,120]
[378815084,1755034262586,-233.736793,0.00049315,30]
[378815085,1755034262596,-400.0,0.00049315,120]
[378815086,1755034262605,-2620.56,0.00049315,120]
[378815087,1755034262614,-1255.76995594,0.00049315,7]
[378815088,1755034262624,-933.85,0.00049315,120]
[378815089,1755034262633,-400.0,0.00049315,120]
[378815090,1755034262643,-400.0,0.00049315,120]
[378815091,1755034262653,-469.16,0.00049315,120]
[378815092,1755034262663,-2959.86,0.00049315,120]
[378815093,1755034262672,-2959.86,0.00049315,120]
[378815094,1755034262682,-2959.86,0.00049315,120]
[378815095,1755034262691,-400.0,0.00049315,120]
[378815096,1755034262702,-2959.86,0.00049315,120]
[378815097,1755034262711,-500.0,0.00049315,120]
[378815098,1755034262721,-2959.86,0.00049315,120]
[378815099,1755034262734,-200.0,0.00049315,7]
[378815100,1755034262743,-2959.86,0.00049315,120]
[378815101,1755034262752,-500.0,0.00049315,120]
[378815102,1755034262762,-400.0,0.00049315,120]
[378815103,1755034262772,-2959.86,0.00049315,120]
[378815104,1755034262781,-500.0,0.00049315,120]
[378815105,1755034262791,-2959.86,0.00049315,120]
[378815106,1755034262800,-500.0,0.00049315,120]
[378815107,1755034262810,-2959.86,0.00049315,120]
[378815108,1755034262820,-400.0,0.00049315,120]
[378815109,1755034262830,-500.0,0.00049315,120]
[378815110,1755034262840,-2959.86,0.00049315,120]
[378815111,1755034262849,-400.0,0.00049315,120]
[378815112,1755034262859,-502.0,0.00049315,120]
[378815113,1755034262868,-2959.86,0.00049315,120]
[378815114,1755034262878,-2959.9989192,0.00049315,120]
[378815115,1755034262888,-747.47,0.00049315,120]
[378815116,1755034262897,-1148.77,0.00049315,120]
[378815117,1755034262907,-470.76,0.00049315,120]
[378815118,1755034262916,-400.0,0.00049315,120]
[378815119,1755034262927,-400.0,0.00049315,120]
[378815120,1755034262937,-428.72,0.00049315,120]
[378815121,1755034262946,-400.0,0.00049315,120]
[378815122,1755034262956,-400.0,0.00049315,120]
[378815123,1755034262965,-400.0,0.00049315,120]
[378815124,1755034262976,-451.33818077,0.00049315,120]
[378815125,1755034262986,-400.0,0.00049315,120]
[378815126,1755034262998,-606.03,0.00049315,120]
[378815127,1755034263007,-400.0,0.00049315,120]
[378815128,1755034263017,-400.0,0.00049315,120]
[378815129,1755034263027,-400.0,0.00049315,120]
[378815130,1755034263037,-700.74,0.00049315,120]
[378815131,1755034263047,-460.0,0.00049315,120]
[378815132,1755034263056,-400.0,0.00049315,120]
[378815133,1755034263065,-402.6435556,0.00049315,16]
[378815134,1755034263075,-400.0,0.00049315,120]
[378815135,1755034263085,-400.0,0.00049315,120]
[378815136,1755034263094,-400.0,0.00049315,120]
[378815137,1755034263103,-400.0,0.00049315,120]
[378815138,1755034263112,-400.0,0.00049315,120]
[378815139,1755034263124,-990.67,0.00049315,120]
[378815140,1755034263133,-460.0,0.00049315,120]
[378815141,1755034263142,-400.0,0.00049315,120]
[378815142,1755034263152,-400.0,0.00049315,120]
[378815143,1755034263161,-400.0,0.00049315,120]
[378815144,1755034263171,-5316.85,0.00049315,120]
[378815145,1755034263180,-400.0,0.00049315,120]
[378815146,1755034263190,-400.0,0.00049315,120]
[378815147,1755034263200,-302.0,0.00049315,14]
[378815148,1755034263209,-882.39,0.00049315,120]
[378815149,1755034263218,-400.0,0.00049315,120]
[378815150,1755034263228,-400.0,0.00049315,120]
[378815151,1755034263237,-400.0,0.00049315,120]
[378815152,1755034263247,-400.0,0.00049315,120]
[378815153,1755034263257,-400.0,0.00049315,120]
[378815154,1755034263267,-400.0,0.00049315,120]
[378815155,1755034263276,-151.0,0.00049315,30]
[378815156,1755034263286,-400.0,0.00049315,120]
[378815157,1755034263296,-400.0,0.00049315,120]
[378815158,1755034263305,-400.0,0.00049315,120]
[378815159,1755034263315,-518.74,0.00049315,120]
[378815160,1755034263324,-400.0,0.00049315,120]
[378815161,1755034263333,-400.0,0.00049315,120]
[378815162,1755034263343,-1328.46,0.00049315,120]
[378815163,1755034263352,-460.0,0.00049315,120]
[378815164,1755034263361,-400.0,0.00049315,120]
[378815165,1755034263371,-499.99,0.00049315,120]
[378815166,1755034263380,-400.0,0.00049315,120]
[378815167,1755034263389,-400.0,0.00049315,120]
[378815168,1755034263399,-400.0,0.00049315,120]
[378815169,1755034263408,-885.81,0.00049315,120]
[378815170,1755034263418,-400.0,0.00049315,120]
[378815171,1755034263430,-400.0,0.00049315,120]
[378815172,1755034263442,-400.0,0.00049315,2]
[378815173,1755034263452,-563.9,0.00049315,120]
[378815174,1755034263462,-400.0,0.00049315,120]
[378815175,1755034263472,-400.0,0.00049315,120]
[378815176,1755034263482,-400.0,0.00049315,120]
[378815177,1755034263491,-1728.08,0.00049315,120]
[378815178,1755034263501,-400.0,0.00049315,120]
[378815179,1755034263511,-708.96,0.00049315,120]
[378815180,1755034263524,-400.0,0.00049315,120]
[378815181,1755034263538,-140.36216486,0.00049315,120]
[378815182,1755034263551,-259.63783514,0.00049315,120]
[378815183,1755034263560,-941.01216486,0.00049315,120]
[378815184,1755034263571,-952.62783514,0.00049315,120]
[378815185,1755034263580,-400.0,0.00049315,120]
[378815186,1755034263590,-14.59236238,0.00049315,120]
[378815187,1755034263601,-383.67740006,0.00049315,120]
[378815188,1755034264128,-196.9993948,0.00037512,15]
[378815189,1755034264138,-137.35466979,0.00040358,2]
[378815190,1755034264150,-1008.89533021,0.00040358,2]
[378815191,1755034264159,-295.50274572,0.00046333,3]
[378815192,1755034264219,-3480.49725428,0.00046333,3]
[378815193,1755034264230,-1888.0,0.00047718,120]
[378815194,1755034264240,-1.73023756,0.00049315,120]
[378815195,1755034264249,-263.78079958,0.00049315,120]
[378815196,1755034264261,-724.22920042,0.00049315,120]
[378815197,1755034264270,-151.0,0.00049315,30]
[378815198,1755034264280,-400.0,0.00049315,120]
[378815199,1755034264289,-400.0,0.00049315,120]
[378815200,1755034264298,-155.3316572,0.00049315,30]
[378815201,1755034264307,-400.0,0.00049315,120]
[378815202,1755034264316,-400.0,0.00049315,120]
[378815203,1755034264326,-400.0,0.00049315,120]
[378815204,1755034264335,-400.0,0.00049315,120]
[378815205,1755034264344,-51.94811943,0.00049315,2]
[378815206,1755034264356,-349.42820139,0.00049315,2]
[378815207,1755034264365,-400.0,0.00049315,120]
[378815208,1755034264375,-150.0,0.00049315,120]
[378815209,1755034264384,-150.0,0.00049315,120]
[378815210,1755034264393,-112.77466274,0.000494,30]
[378815211,1755034264404,-54.56533726,0.000494,30]
[378815212,1755034264414,-1000.0,0.00049406,120]
[378815213,1755034264423,-200.0,0.00049409,14]
[378815214,1755034264432,-200.0,0.00049409,14]
[378815215,1755034264441,-200.0,0.00049409,14]
[378815216,1755034264450,-200.0,0.00049409,14]
[378815217,1755034264459,-200.0,0.00049409,14]
[378815218,1755034264469,-206.44,0.00049424,14]
[378815219,1755034264478,-500.0,0.00049445,120]
[378815220,1755034264487,-1085.0,0.00049452,30]
[378815221,1755034264498,-764.37160978,0.00049473,2]
[378815222,1755034264507,-167.08467471,0.00049489,15]
[378815223,1755034264517,-236.7758522,0.00049499,120]
[378815224,1755034264526,-48.26252605,0.000495,120]
[378815225,1755034264548,-1888.0,0.00049313,120]
[378815226,1755034264557,-3197.39385886,0.000495,120]
[378815227,1755034264568,-538.97057758,0.000495,120]
[378815228,1755034264579,-594.67405818,0.000495,120]
[378815229,1755034265423,-1888.0,0.00049313,120]
[378815230,1755034265432,-576.18,0.00049315,120]
[378815231,1755034265441,-5050.15092264,0.000495,120]
[378815232,1755034265453,-9866.30671374,0.000495,120]
[378815233,1755034265464,-1200.3,0.000495,120]
[378815234,1755034265476,-32827.33324708,0.000495,120]
[378815235,1755034265486,-500.0,0.0004955,120]
[378815236,1755034265495,-500.0,0.00049573,10]
[378815237,1755034265504,-500.0,0.00049587,120]
[378815238,1755034265514,-500.0,0.00049587,120]
[378815239,1755034265523,-601.7,0.00049587,120]
[378815240,1755034265532,-500.0,0.00049588,120]
[378815241,1755034265541,-500.0,0.00049588,120]
[378815242,1755034265550,-500.0,0.00049588,120]
[378815243,1755034265559,-500.0,0.00049588,120]
[378815244,1755034265569,-500.0,0.00049588,120]
[378815245,1755034265578,-500.0,0.00049588,120]
[378815246,1755034265587,-500.0,0.00049588,120]
[378815247,1755034265600,-500.0,0.00049588,120]
[378815248,1755034265610,-500.0,0.00049588,120]
[378815249,1755034265619,-500.0,0.00049588,120]
[378815250,1755034265629,-500.0,0.00049588,120]
[378815251,1755034265638,-655.42,0.00049588,120]
[378815252,1755034265648,-655.42,0.00049588,120]
[378815253,1755034265660,-655.42,0.00049588,120]
[378815254,1755034265669,-151.0,0.00049588,120]
[378815255,1755034265678,-151.0,0.00049588,118]
[378815256,1755034265688,-150.0,0.00049589,120]
[378815257,1755034265698,-150.0,0.00049589,120]
[378815258,1755034265707,-152.69890409,0.00049589,120]
[378815259,1755034265717,-291.74312721,0.00049589,120]
[378815260,1755034265728,-150.0,0.00049589,120]
[378815261,1755034265739,-210.78498265,0.00049589,120]
[378815262,1755034265750,-184.45517253,0.00049589,120]
[378815263,1755034265760,-500.0,0.00049589,120]
[378815264,1755034265769,-500.0,0.00049589,120]
[378815265,1755034265779,-150.0,0.00049589,120]
[378815266,1755034265789,-500.0,0.00049589,120]
[378815267,1755034265799,-158.5445144,0.00049589,120]
[378815268,1755034265808,-150.0,0.00049589,120]
[378815269,1755034265818,-500.0,0.00049589,120]
[378815270,1755034265827,-150.0,0.00049589,120]
[378815271,1755034265837,-150.0,0.00049589,120]
[378815272,1755034265846,-500.0,0.00049589,120]
[378815273,1755034265856,-500.0,0.00049589,120]
[378815274,1755034265865,-500.0,0.00049589,120]
[378815275,1755034265875,-338.744835,0.00049589,120]
[378815276,1755034265884,-365.915033,0.00049589,120]
[378815277,1755034265893,-843.0035059,0.00049589,30]
[378815278,1755034265903,-400.0,0.00049589,120]
[378815279,1755034265912,-497.39142696,0.00049589,120]
[378815280,1755034265922,-400.0,0.00049589,120]
[378815281,1755034265931,-400.0,0.00049589,120]
[378815282,1755034265941,-557.28,0.00049589,120]
[378815283,1755034265951,-400.0,0.00049589,120]
[378815284,1755034265960,-400.0,0.00049589,120]
[378815285,1755034265970,-400.0,0.00049589,120]
[378815286,1755034265979,-400.0,0.00049589,120]
[378815287,1755034265989,-400.0,0.00049589,120]
[378815288,1755034265999,-465.39320374,0.00049589,120]
[378815289,1755034266008,-400.0,0.00049589,120]
[378815290,1755034266018,-400.0,0.00049589,120]
[378815291,1755034266028,-400.0,0.00049589,120]
[378815292,1755034266037,-400.0,0.00049589,120]
[378815293,1755034266047,-400.0,0.00049589,120]
[378815294,1755034266056,-400.0,0.00049589,120]
[378815295,1755034266066,-400.0,0.00049589,120]
[378815296,1755034266075,-400.0,0.00049589,120]
[378815297,1755034266084,-460.0,0.00049589,120]
[378815298,1755034266094,-400.0,0.00049589,120]
[378815299,1755034266103,-400.0,0.00049589,120]
[378815300,1755034266113,-400.0,0.00049589,120]
[378815301,1755034266123,-460.0,0.00049589,120]
[378815302,1755034266132,-400.0,0.00049589,120]
[378815303,1755034266142,-400.0,0.00049589,120]
[378815304,1755034266151,-400.0,0.00049589,120]
[378815305,1755034266161,-400.0,0.00049589,120]
[378815306,1755034266171,-400.0,0.00049589,120]
[378815307,1755034266181,-400.0,0.00049589,120]
[378815308,1755034266190,-500.0,0.00049589,120]
[378815309,1755034266199,-400.0,0.00049589,120]
[378815310,1755034266209,-400.0,0.00049589,120]
[378815311,1755034266219,-400.0,0.00049589,120]
[378815312,1755034266228,-533.19,0.00049589,120]
[378815313,1755034266237,-405.64,0.00049589,120]
[378815314,1755034266247,-400.0,0.00049589,120]
[378815315,1755034266256,-400.0,0.00049589,120]
[378815316,1755034266265,-400.0,0.00049589,120]
[378815317,1755034266274,-400.0,0.00049589,120]
[378815318,1755034266284,-400.0,0.00049589,120]
[378815319,1755034266294,-400.0,0.00049589,120]
[378815320,1755034266304,-435.09,0.00049589,120]
[378815321,1755034266313,-400.0,0.00049589,120]
[378815322,1755034266323,-400.0,0.00049589,120]
[378815323,1755034266332,-400.0,0.00049589,120]
[378815324,1755034266341,-460.0,0.00049589,120]
[378815325,1755034266351,-400.0,0.00049589,120]
[378815326,1755034266360,-400.0,0.00049589,120]
[378815327,1755034266370,-400.0,0.00049589,120]
[378815328,1755034266379,-400.0,0.00049589,120]
[378815329,1755034266388,-400.0,0.00049589,120]
[378815330,1755034266398,-400.0,0.00049589,120]
[378815331,1755034266407,-300.0,0.00049589,120]
[378815332,1755034266417,-400.0,0.00049589,120]
[378815333,1755034266428,-348.32280652,0.00049589,120]
[378815334,1755034266440,-400.0,0.00049589,120]
[378815335,1755034266451,-400.0,0.00049589,120]
[378815336,1755034266461,-625.73,0.00049589,120]
[378815337,1755034266471,-400.0,0.00049589,120]
[378815338,1755034266481,-401.37922636,0.00049589,120]
[378815339,1755034266490,-400.0,0.00049589,120]
[378815340,1755034266500,-469.73,0.00049589,120]
[378815341,1755034266509,-491.18,0.00049589,120]
[378815342,1755034266519,-400.0,0.00049589,120]
[378815343,1755034266529,-400.0,0.00049589,120]
[378815344,1755034266538,-460.43,0.00049589,120]
[378815345,1755034266547,-400.0,0.00049589,120]
[378815346,1755034266558,-400.0,0.00049589,120]
[378815347,1755034266569,-526.2,0.00049589,120]
[378815348,1755034266578,-400.0,0.00049589,120]
[378815349,1755034266588,-400.0,0.00049589,120]
[378815350,1755034266597,-400.0,0.00049589,120]
[378815351,1755034266607,-400.0,0.00049589,120]
[378815352,1755034266617,-483.6,0.00049589,120]
[378815353,1755034266627,-400.0,0.00049589,120]
[378815354,1755034266637,-400.0,0.00049589,120]
[378815355,1755034266647,-400.0,0.00049589,120]
[378815356,1755034266661,-400.0,0.00049589,120]
[378815357,1755034266671,-400.0,0.00049589,120]
[378815358,1755034266680,-400.0,0.00049589,120]
[378815359,1755034266689,-400.0,0.00049589,120]
[378815360,1755034266699,-400.0,0.00049589,120]
[378815361,1755034266711,-400.0,0.00049589,120]
[378815362,1755034266721,-550.74,0.00049589,120]
[378815363,1755034266735,-400.0,0.00049589,120]
[378815364,1755034266745,-400.0,0.00049589,120]
[378815365,1755034266754,-400.0,0.00049589,120]
[378815366,1755034266765,-400.0,0.00049589,120]
[378815367,1755034266774,-400.0,0.00049589,120]
[378815368,1755034266784,-598.27,0.00049589,120]
[378815369,1755034266793,-400.0,0.00049589,120]
[378815370,1755034266802,-400.0,0.00049589,120]
[378815371,1755034266811,-519.96,0.00049589,120]
[378815372,1755034266821,-486.61,0.00049589,120]
[378815373,1755034266830,-400.0,0.00049589,120]
[378815374,1755034266839,-400.0,0.00049589,120]
[378815375,1755034266849,-400.0,0.00049589,120]
[378815376,1755034266858,-400.0,0.00049589,120]
[378815377,1755034266867,-400.0,0.00049589,120]
[378815378,1755034266877,-400.0,0.00049589,120]
[378815379,1755034266886,-460.0,0.00049589,120]
[378815380,1755034266896,-400.0,0.00049589,120]
[378815381,1755034266906,-460.03,0.00049589,120]
[378815382,1755034266916,-428.0,0.00049589,120]
[378815383,1755034266927,-400.0,0.00049589,120]
[378815384,1755034266937,-400.0,0.00049589,120]
[378815385,1755034266947,-401.47483136,0.00049589,120]
[378815386,1755034266956,-400.0,0.00049589,120]